Cogmind - Beta 15 @@@ ROGUE MODE // 2025.07.19 @ 21:00:07 Player: LameThyst Result: Destroyed by PC-1VB(R) with Subdweller Beam Cannon Performance ------------- Evolutions (0) 0 Regions Visited (2) 400 Robots Destroyed (28) 140 Value Destroyed (686) 686 Prototype IDs (0) 0 Alien Tech Used (0) 0 Bonus (0) 0 TOTAL SCORE: 1226 Bonus ------- None Cogmind --------- Core Integrity 0/250 Matter 300/300 Energy 100/100 System Corruption 0% Temperature Cool (9) Movement Treading (160) Location -10/Subcaves Parts ------- > --- POWER (1) -------- (None) > --- PROPULSION (2) --- Spiked Treads Aluminum Leg > --- UTILITY (2) ------ Medium Storage Unit > --- WEAPON (2) ------- (None) > --- INVENTORY (10) --- Aluminum Leg Aluminum Leg Aluminum Leg Improved Heat Sink Structural Scanner Subdweller Optics Sensor Array Signal Interpreter Peak State ------------ > --- POWER ------------ Subdweller Power Source > --- PROPULSION ------- Spiked Treads Aluminum Leg > --- UTILITY ---------- Medium Storage Unit Seismic Detector > --- WEAPON ----------- Medium Laser Light Assault Rifle > --- INVENTORY -------- Ion Engine Aluminum Leg Aluminum Leg Aluminum Leg Aluminum Leg Improved Heat Sink Structural Scanner Sensor Array Signal Interpreter Mining Laser [Rating: 10] Favorites ----------- Power Ion Engine Engine Ion Engine Propulsion Aluminum Leg Treads Spiked Treads Leg Aluminum Leg Wheel Subdweller Monowheel Utility Medium Storage Unit Device Seismic Detector Storage Medium Storage Unit Protection Light Armor Plating Weapon Assault Rifle Energy Gun Medium Laser Ballistic Gun Assault Rifle Special Weapon Mining Laser Build | -11 -10 -10 ------- Run | Yrd Mat Sub Slots Evolved . | . . . Power . | . . . Propulsion . | . . . Utility . | . . . Weapon . | . . . Parts Attached 38 | 9 25 4 Power 8 | 2 4 2 Engine 8 | 2 4 2 Core . | . . . Reactor . | . . . Propulsion 15 | 2 11 2 Treads 3 | . 2 1 Leg 11 | 2 9 . Wheel 1 | . . 1 Hover . | . . . Flight . | . . . Utility 10 | 2 8 . Device 4 | . 4 . Storage 4 | 2 2 . Processor . | . . . Hackware . | . . . Protection 2 | . 2 . Artifact . | . . . Weapon 5 | 3 2 . Energy Gun 1 | 1 . . Energy Cannon . | . . . Ballistic Gun 3 | 2 1 . Ballistic Cannon . | . . . Launcher . | . . . Special Weapon 1 | . 1 . Impact Weapon . | . . . Slashing Weapon . | . . . Piercing Weapon . | . . . Special Melee Weapon . | . . . Unidentified Prototypes . | . . . Parts Lost 10 | . 4 6 Power 3 | . 1 2 Propulsion . | . . . Utility 2 | . 1 1 Weapon 5 | . 2 3 Highest Loss Streak 5 | . 3 5 To Critical Strikes . | . . . Average Backups 9 | 3 9 9 Power 1 | 1 1 . Propulsion 2 | . 2 3 Utility 3 | . 3 4 Weapon 1 | . 2 . Tool/Special . | . . . Unused Backups 13 | 1 9 3 Power 2 | . 2 . Propulsion 4 | 1 3 . Utility 4 | . 1 3 Weapon 3 | . 3 . Tool/Special . | . . . Average Slot Usage (%) 98 | . 97 98 Engine 13 | . 13 13 Treads 5 | . 3 10 Leg 22 | . 24 16 Device 12 | . 11 13 Storage 14 | . 14 14 Energy Gun 7 | . 5 13 Ballistic Gun 17 | . 19 12 Special Weapon 2 | . 3 1 Peak Build Rating 10 | 7 8 10 Average Rating 7 | 5 7 8 On Entrance 5 | . 7 8 Naked Turns . | . . . Heaviest Build 22 | 19 22 19 Greatest Support 40 | 20 40 20 Greatest Overweight (x) 6 | . 6 . Average Overweight (x) . | . . . Largest Inventory Capacity 10 | 8 10 10 Average Capacity 9 | 7 9 10 Most Carried 10 | 6 10 10 Average Carried 9 | 3 9 9 Final Capacity 10 | 8 10 10 Final Carried 10 | 6 10 8 Class Distribution -------------------- 100% | Mutant Dominant Class ---------------- Mutant | -10/Materials Mutant | -10/Subcaves Resources | -11 -10 -10 ----------- Run | Yrd Mat Sub Matter Collected 1002 | 299 550 153 Remotely . | . . . Salvage Created 1039 | 137 726 176 Parts 64 | 10 40 14 Haulers Intercepted 1 | . 1 . Recyclers Shooed . | . . . Parts Field Recycled . | . . . Retrieved Matter . | . . . Parts Self-Destructed 3 | . . 3 Prevented . | . . . Kills | -11 -10 -10 ------- Run | Yrd Mat Sub Combat Hostiles Destroyed 18 | . 14 4 Guns 18 | . 14 4 Classes Destroyed 9 | 2 6 1 Worker 1 | . 1 . Builder 1 | . 1 . Tunneler 3 | 3 . . Hauler 1 | . 1 . Recycler 2 | 1 1 . Watcher 2 | . 2 . Swarmer 3 | . 3 . Grunt 11 | . 11 . Subdweller 4 | . . 4 Best Kill Streak 5 | 2 5 1 Combat Bots Only 3 | . 3 1 Max Kills in Single Turn 2 | 1 2 1 Gunslinging 1 | . 1 . Exploded . | . . . Melee . | . . . Uniques/NPCs Destroyed . | . . . Combat | -11 -10 -10 -------- Run | Yrd Mat Sub Hostile Shots Fired 149 | . 101 48 Missed 42 | . 25 17 Hits 107 | . 76 31 Projectile 107 | . 76 31 Critical Strikes 2 | . 1 1 Damage Taken 1653 | . 913 740 Core 266 | . 62 204 Absorbed by Shields . | . . . Regen/Repaired (Parts) 10 | . 10 . Core Remaining (%) 100 | 100 . . Volleys Fired 89 | 5 60 24 Largest 2 | 2 2 2 Hottest 120 | 70 100 120 Shots Fired 169 | 10 114 45 Gun 161 | 10 110 41 Cannon . | . . . Launcher . | . . . Special 8 | . 4 4 Kinetic 118 | 7 88 23 Thermal 51 | 3 26 22 Explosive . | . . . Electromagnetic . | . . . Robot Hit Streak 13 | 6 13 13 Robot Miss Streak 3 | 1 3 3 Penetration Max . | . . . Secondary Targets 3 | . 2 1 Max Gunslinging Chain 1 | . 1 1 Shots Hit Robots 118 | 7 77 34 Core Hits 51 | 5 35 11 Critical Kills . | . . . Critical Parts Destroyed 1 | . 1 . Critical Strikes 2 | . 2 . Burn 1 | . 1 . Destroy 1 | . 1 . Melee Attacks . | . . . Impact . | . . . Slashing . | . . . Piercing . | . . . Sneak Attacks . | . . . Combat Hostiles . | . . . Follow-up Attacks . | . . . Damage Inflicted 1523 | 102 1021 400 Guns 1443 | 102 1021 320 Cannons . | . . . Explosions . | . . . Melee . | . . . Ramming 8 | . . 8 Kinetic 1015 | 65 819 131 Thermal 500 | 37 202 261 Explosive . | . . . Electromagnetic . | . . . Impact . | . . . Slashing . | . . . Piercing . | . . . Highest Corruption . | . . . Average Corruption . | . . . Corruption Purged . | . . . Corruption Blocked . | . . . Overload Shots . | . . . Overflow Damage . | . . . Projectiles . | . . . Explosions . | . . . Melee . | . . . Knockbacks . | . . . Impact . | . . . Kinetic . | . . . Secondary . | . . . Self-Inflicted Damage . | . . . Shots . | . . . Rammed 4 | . . 4 Targets Rammed 4 | . . 4 Kicked . | . . . Crushed . | . . . Highest Temperature 54 | 9 54 1 Average Temperature 14 | 6 15 1 Received Heat Transfer 666 | . 492 174 Siege Activations . | . . . Martial Activations . | . . . Shielding Activations . | . . . Robots Disrupted . | . . . Combat Hostiles . | . . . Robots Corrupted . | . . . Combat Hostiles . | . . . Parts Fried . | . . . Impact Corruptions . | . . . Robots Melted . | . . . Combat Hostiles . | . . . Parts Melted 4 | . 1 3 Heat Transferred 1482 | 111 666 705 Parts Sabotaged . | . . . Parts Stolen . | . . . Parts Stripped . | . . . Power Chain Reactions . | . . . Alert | -11 -10 -10 ------- Run | Yrd Mat Sub Maximum Alert Level . | . . . Low Security (%) 100 | 100 100 . Level 1 . | . . . Level 2 . | . . . Level 3 . | . . . Level 4 . | . . . Level 5 . | . . . High Security . | . . . Max Security . | . . . Peak Influence 126 | 10 126 . Initial . | . . . Average 22 | 1 23 . Influence Increases 499 | 20 479 . Destroy 0b10 Robot/C 280 | . 280 . Destroy 0b10 Robot/NC 50 | 20 30 . Destroy Leader 76 | . 76 . Successful Hack 45 | . 45 . Disable Machine 15 | . 15 . Destroy Structure 3 | . 3 . Lose Combat Pursuer 30 | . 30 . Influence Decreases 499 | 20 479 . Time Decay 352 | 20 332 . Lost Part 33 | . 33 . Purge Threat 114 | . 114 . Squads Dispatched 3 | . 3 . Investigation 2 | . 2 . Extermination . | . . . Reinforcement 1 | . 1 . Assault . | . . . Garrison . | . . . Intercept . | . . . Searches Triggered . | . . . Construction Impeded . | . . . Haulers Reinforced . | . . . Active Scanning Responses . | . . . Cargo Convoy Interrupts . | . . . Stealth | -11 -10 -10 --------- Run | Yrd Mat Sub Distress Signals . | . . . Communications Jammed . | . . . Distress Signals . | . . . Times Spotted 31 | . 25 6 Peak Tracking Total 4 | . 4 2 Tactical Retreats 2 | . 2 . Traps | -11 -10 -10 ------- Run | Yrd Mat Sub Traps Triggered 3 | . 2 1 Indirectly . | . . . Trap Hack Attempts . | . . . Triggered . | . . . Disarmed . | . . . Reprogrammed . | . . . Reused . | . . . Traps Extracted . | . . . Installed . | . . . Triggered . | . . . Machines | -11 -10 -10 ---------- Run | Yrd Mat Sub Machines Disabled 1 | . 1 . Max in Single Turn 1 | . 1 . Machines Repaired . | . . . Machines Dismantled . | . . . Machines Sabotaged . | . . . Overloaded Fab Kills . | . . . Hacking | -11 -10 -10 --------- Run | Yrd Mat Sub Machines Accessed 7 | . 7 . Terminals 5 | . 5 . Fabricators . | . . . Repair Stations 1 | . 1 . Recycling Units 1 | . 1 . Scanalyzers . | . . . Garrison Access . | . . . Total Hacks 33 | . 33 . Successful 17 | . 17 . Failed 16 | . 16 . Catastrophic 2 | . 2 . Database Lockouts . | . . . Manual 27 | . 27 . Terminals 23 | . 23 . Fabricators . | . . . Repair Stations 4 | . 4 . Recycling Units 6 | . 6 . Scanalyzers . | . . . Garrison Access . | . . . Terminal Hacks 2 | . 2 . Unreport Threat 1 | . 1 . Hauler Manifests 1 | . 1 . Fabricator Hacks . | . . . Repair Station Hacks 3 | . 3 . Scan Component 2 | . 2 . Repair 1 | . 1 . Recycling Unit Hacks . | . . . Scanalyzer . | . . . Garrison Access Hacks . | . . . Unauthorized Hacks 12 | . 12 . Terminals 10 | . 10 . Track 1 | . 1 . Botnet 3 | . 3 . Operators 1 | . 1 . Skim 5 | . 5 . Fabricators . | . . . Repair Stations . | . . . Recycling Units 2 | . 2 . Reject 1 | . 1 . Recyclers 1 | . 1 . Scanalyzers . | . . . Garrison Access . | . . . Data Cores Recovered . | . . . Used . | . . . Hacking Detections 7 | . 7 . Full Trace Events . | . . . Feedback Events . | . . . Feedback Blocked . | . . . Robot Schematics Acquired . | . . . Robots Built . | . . . Authchips . | . . . Time . | . . . Total Robot Build Rating . | . . . Part Schematics Acquired . | . . . Parts Built . | . . . Authchips . | . . . Time . | . . . Total Part Build Rating . | . . . Parts Repaired 1 | . 1 . Time 26 | . 26 . Parts Recycled . | . . . Recycled Matter . | . . . Retrieved Matter . | . . . Retrieved Components . | . . . Parts Scanalyzed . | . . . Part Schematics Acquired . | . . . Parts Damaged . | . . . Bothacking | -11 -10 -10 ------------ Run | Yrd Mat Sub Used RIF Installer . | . . . Robots Hacked . | . . . Non-combat . | . . . Combat . | . . . Robot Hacks Applied . | . . . Relay Couplers Released . | . . . Fabnet Peak Effective % . | . . . Robots Rewired . | . . . Allies Hacked . | . . . Hacks Repelled . | . . . Allies | -11 -10 -10 -------- Run | Yrd Mat Sub Total Allies . | . . . Largest Group . | . . . Highest-Rated Group . | . . . Highest-Rated Ally . | . . . Total Orders . | . . . Ally Attacks . | . . . Total Damage . | . . . Kills . | . . . Allies Corrupted . | . . . Allies Melted . | . . . Intel | -11 -10 -10 ------- Run | Yrd Mat Sub Active Infowar (turns) 1741 | . 1186 555 Sensors 242 | . 242 . Structural 451 | . 451 . Seismic 1048 | . 493 555 Robot Analysis Total . | . . . Derelict Logs Recovered 1 | . . 1 Drone Launches . | . . . Drone Recoveries . | . . . Exploration | -11 -10 -10 ------------- Run | Yrd Mat Sub Turns Passed 2117 | 121 1431 565 Spaces Moved 1245 | 75 872 298 Core 5 | 4 1 . Treads 299 | . 74 225 Legs 930 | 71 797 62 Wheels 11 | . . 11 Hover . | . . . Flight . | . . . Fastest Speed 50 | 50 120 110 Average Speed 130 | 116 124 149 Slowest Speed 350 | 120 350 160 Overloaded Moves . | . . . Propulsion Burnouts . | . . . Robots Hopped . | . . . Potential Cave-ins . | . . . Cave-ins Triggered . | . . . Exploration Rate (%) 42 | 6 97 24 Regions Visited 2 Branch Regions 1 Pre-discovered Areas 1 | . 1 . Known Exits Taken 1 | . 1 . Unknown Exits Taken 1 | 1 . . Scrap Searched . | . . . Spaces Dug 1 | . 1 . Terrain Destroyed 2 | . 2 . Melee . | . . . Projectile 2 | . 2 . AOE . | . . . Terrain Rammed . | . . . Walls Destroyed . | . . . Machines Disabled . | . . . Actions | -11 -10 -10 --------- Run | Yrd Mat Sub Total 1565 | 95 1108 362 Wait 99 | . 85 14 Move 1243 | 74 871 298 Hop . | . . . Pick Up 34 | 6 24 4 Fast Attach 12 | 7 4 1 Attach 9 | . 6 3 Detach 2 | . 2 . Swap 35 | 2 24 9 Drop 38 | 1 32 5 Fire 89 | 5 60 24 Melee . | . . . Ram . | . . . Kick . | . . . Crush 4 | . . 4 Escape Stasis . | . . . Rewire . | . . . Trap . | . . . Miscellaneous . | . . . Route ------- -11/Scrapyard -10/Materials (discovered 5 exits: [*Mat x3] / [*Min] / *Sub) -10/Subcaves History --------- Turn | Location | Event 3 | -11/Scrapyard | Discovered new exit (range 15) 122 | -11/Scrapyard | Entered Materials 300 | -10/Materials | Build established: Mutant 337 | -10/Materials | Discovered new exit (range 8) 552 | -10/Materials | Discovered new exit (range 4) 791 | -10/Materials | Lost 3 parts (1p1u1w) 796 | -10/Materials | Discovered new exit (range 16) 852 | -10/Materials | Discovered new exit (range 6) 1219 | -10/Materials | Learned location of Subcaves (-10) 1272 | -10/Materials | Identified exit to Subcaves 1314 | -10/Materials | Loaded intel: 11 interactive machine locations 1371 | -10/Materials | Learned Storage emergency access door positions 1390 | -10/Materials | Learned location of 2 exits from Materials 1418 | -10/Materials | Learned 4 Subcaves zone layouts 1472 | -10/Materials | Repaired Sensor Array 1553 | -10/Materials | Entered Subcaves 1554 | -10/Subcaves | Approached by a straggling Scientist 1898 | -10/Subcaves | Learned Materials terminal intel 1985 | -10/Subcaves | A swath of the cavern ceiling suddenly collapsed 2107 | -10/Subcaves | Core integrity fell below 50% 2115 | -10/Subcaves | Core integrity fell below 20% 2118 | -10/Subcaves | Destroyed by PC-1VB(R) with Subdweller Beam Cannon Last Messages --------------- VA-5JA(c): "I think it's somewhere northeast of here" 01985_ VA-5JA(c) crushed by falling debris. A swath of the cavern ceiling suddenly collapses. VA-5JA(c): "I think it's somewhere northeast of here" 02026_ Sub. Power Source shoots sparks and powers down. 02026_ Dropped Broken Sub. Power Source. VA-5JA(c): "I think it's somewhere northeast of here" 02083_ Med. Laser destroyed. 02104_ Mining Laser destroyed. 02108_ Seismic Detector destroyed. 02108_ Ion Engine destroyed. 02111_ Slammed into PV-295(R). 02112_ Lgt. Assault Rifle destroyed. 02113_ Slammed into PV-295(R). 02118_ Slammed into PC-1VB(R). Map ----- +----------------------------------------------------+ | ????????????????????????????????????##### ##?? | | ????????????????????????????????????????## #?? | | ?????????????????????????????????????????# ##? | | ????????????????????????#### #???### ## | | ???????????????????????? "" ##???# # | | ???????????????????????? #????# # | | ???????????????????????? #????##### ## | | ???????????????????????? "" #######??# ## | | ???????????????????????? " # ## ""#?## | | ???????????????????????? # # ## ""#?# # | | ???????????????????????? # # "#" ""#?#" # | | ???????????????????????? ## # " ""#?# " | | ?????????????????? ? ??? ### ## "" ""#?#" | | ??????????????? ??? ##?# ""## """"#### | | ??????????????? ?? #??# ""## """ #### | | ???????????????? ??###?## ""## "" #### # | | ????????????????? ??????# """ ## # | | ??????????????????# #?????## """" !% = | | ???????????????????# ?????# "##### "" "" =! & | | ??????????????###### ?????####???# ## "" ! | | ??????????????# ##??????????#" ## "" | | ??????????????# ##?????????#"" " | | ??????????????# ##????????##""" | | ??????????????# ###???????# "" ## | | ???????????????# #???##### #### | | ??????????????????#### @ R##### # # ##??## | | ?????????????????##??# R# #;;;;# #####?# | | ????????????????## ### ;##;#"#"# #### ##### ### | | ????????????????# #### "####"# ######???# | | ????????????????# ####""#""######"###????# | | ????????????????# ####"#####"""#####???# | | ?????????????????# ##"#"""#""""#""""##?## | | ?????????????????## ###"""###"##"##"##"#?# | | ??????????????????# #"###""#"" ##""""## #?# | | ??????????????????# #""#"#"#####"#" "# #?# | | ??????????????????## "#"##"#??####"" ###?## | | ???????????????????# ###"###????###""##???## | | ???????????????????##*#??#""???### "#"#?????## | | ????????????????????###???#"#??# # #??????# | | ???????????????????????????##??# ######### | | ???????????????????????????????# ## #?# | | ???????????????????????????????###### ### | | ????????????????????????????????????## | | ?????????????????????????????????????## | | ??????????????????????????????????????# | | ??????????????????????????????????????#### ## | | ?????????????????????????????????????????# ### | | ????????????????????????????????????????? #?# | | ???????????????????????????????????????? #? | | ??????????????????????????????????????? ## | +----------------------------------------------------+ Best States ------------- Heat Dissipation 25 Energy Generation 15 Energy Capacity 250 Matter Stores 300 Matter Capacity 300 Sight Range 16 Robot Scan Range 14 Terrain Scan Density 10 Armor Coverage 150 Evasion (%) 55 Recoil Reduction 2 Item Schematics ----------------- None Robot Schematics ------------------ None Fabricated ------------ Nothing Repaired ---------- Sensor Array | 50% | -10/Materials Alien Tech Used ----------------- None Achievements -------------- None Challenges ------------ None Game ------ Seed VampiricAntimatterBarrier Manual? 0 Play Time 00:23:37 Cumulative 92.1 hours Start 2025.07.18 @ 23:30:33 End 2025.07.19 @ 21:00:07 Sessions 6 Manual Loads 0 Difficulty Rogue Special Mode None Game No. 103 Rogue 103 Adventurer 0 Explorer 0 Win Type - Total 0 Types 0/0/0/0/0/0/0/0/0/0 Lore% 52 Gallery% 41 Achievement% 32 Wizard Run 0 Options --------- Layout 1 ASCII 0 Keyboard 0 Movement Mouse Keybinds 0 Fullscreen 2 Font 48/Smallcaps Map View 50x35 Zoom Use 0% Tactical HUD 1 Map Filters NONE Filters NONE Steam 0 RUN: 7386f034-7ae3-4aab-964d-94ccb5b680fa